fUSD/lending_fUSD_20260315
["ID","MTS","AMOUNT","RATE_DAILY","PERIOD"]
[408414687,1773583832875,-490.3019275,0.00014628,2]
[408414688,1773583832883,-500.0,0.00014628,2]
[408414689,1773583832893,-5172.19,0.00014637,2]
[408414690,1773583832902,-200.0,0.00014651,2]
[408414691,1773583832911,-3301.09,0.00014651,2]
[408414692,1773583832924,-166.66,0.00014797,2]
[408414693,1773583832933,-160.38,0.00014811,2]
[408414694,1773583832943,-303.0,0.00014877,2]
[408414695,1773583832952,-500.0,0.00014902,2]
[408414696,1773583832962,-2150.71,0.00014938,2]
[408414697,1773583832971,-184.5,0.00014938,2]
[408414698,1773583832981,-250.0,0.00015,2]
[408414699,1773583832993,-250.0,0.00015027,2]
[408414700,1773583833002,-500.0,0.00015068,2]
[408414701,1773583833011,-166.66,0.0001509,2]
[408414702,1773583833020,-200.0,0.00015176,2]
[408414703,1773583833029,-313.0,0.00015266,2]
[408414704,1773583833038,-300.0,0.00015268,2]
[408414705,1773583833047,-1680.0,0.00015298,2]
[408414706,1773583833060,-5533.0,0.000153,5]
[408414707,1773583833069,-2889.531,0.0001538,2]
[408414708,1773583833078,-9927.51959918,0.0001538,2]
[408414709,1773583833088,-2500.0,0.0001538,2]
[408414710,1773583833097,-166.66,0.00015383,2]
[408414711,1773583833107,-500.0,0.00015472,2]
[408414712,1773583833116,-500.0,0.00015479,2]
[408414713,1773583833126,-500.0,0.00015479,2]
[408414714,1773583833135,-500.0,0.00015479,2]
[408414715,1773583833144,-500.0,0.00015479,2]
[408414716,1773583833154,-500.0,0.00015479,2]
[408414717,1773583833163,-447.5199164,0.00015479,2]
[408414718,1773583833172,-500.0,0.00015479,2]
[408414719,1773583833182,-500.0,0.00015479,2]
[408414720,1773583833191,-500.0,0.00015479,2]
[408414721,1773583833201,-500.0,0.00015479,2]
[408414722,1773583833210,-500.0,0.00015479,2]
[408414723,1773583833219,-500.0,0.00015479,2]
[408414724,1773583833228,-500.0,0.00015479,2]
[408414725,1773583833237,-500.0,0.00015479,2]
[408414726,1773583833246,-500.0,0.00015479,2]
[408414727,1773583833255,-500.0,0.00015479,2]
[408414728,1773583833265,-500.0,0.00015479,2]
[408414729,1773583833274,-500.0,0.00015479,2]
[408414730,1773583833284,-500.0,0.00015479,2]
[408414731,1773583833293,-500.0,0.00015479,2]
[408414732,1773583833302,-500.0,0.00015479,2]
[408414733,1773583833311,-500.0,0.00015479,2]
[408414734,1773583833320,-500.0,0.00015479,2]
[408414735,1773583833329,-500.0,0.00015479,2]
[408414736,1773583833338,-500.0,0.00015479,2]
[408414737,1773583833348,-500.0,0.00015479,2]
[408414738,1773583833356,-500.0,0.00015479,2]
[408414739,1773583833366,-500.0,0.00015479,2]
[408414740,1773583833375,-500.0,0.00015479,2]
[408414741,1773583833383,-300.0,0.00015479,2]
[408414742,1773583833393,-5000.0,0.0001548,2]
[408414743,1773583833402,-246086.2836,0.0001548,2]
[408414744,1773583833411,-303.09676308,0.0001548,2]
[408414745,1773583833420,-335.21198977,0.00015491,2]
[408414746,1773583833429,-405.85897198,0.00015573,2]
[408414747,1773583833438,-500.0,0.00015573,2]
[408414748,1773583833449,-500.0,0.00015573,2]
[408414749,1773583833459,-447.81174618,0.00015573,2]
[408414750,1773583833468,-6993.30768966,0.00015573,2]
[408414751,1773583833477,-648.06307515,0.00015579,2]
[408414752,1773583833486,-316.70177723,0.00015579,2]
[408414753,1773583833496,-155.0,0.00015579,2]
[408414754,1773583833506,-289.8852,0.0001558,2]
[408414755,1773583833515,-1000.0,0.0001558,2]
[408414756,1773583833524,-40899.69105343,0.0001558,2]
[408414757,1773583833537,-49500.27360706,0.0001558,2]
[408414758,1773583833549,-7275.03866046,0.0001558,2]
[408414759,1773583833560,-806.0,0.0001558,2]
[408414760,1773583833571,-1046.42972454,0.0001558,2]
[408414761,1773583833582,-1095.56629781,0.0001558,2]
[408414762,1773583833592,-729.0,0.0001558,2]
[408414763,1773583833604,-1500.36,0.0001558,2]
[408414764,1773583833614,-297.04785907,0.0001558,2]
[408414768,1773583837930,-20958.22132836,0.0001558,2]
[408414769,1773583837988,-542.68026114,0.0001558,2]
[408414770,1773583838002,-10662.0079373,0.0001558,2]
[408414771,1773583838100,-1475.68899606,0.0001558,2]
[408414772,1773583838112,-36487.0,0.0001558,2]
[408414773,1773583838123,-1276.78651,0.0001558,2]
[408414774,1773583838157,-1170.75638054,0.0001558,2]
[408414790,1773583840205,-137586.81665908,0.0001558,2]
[408414791,1773583840424,-291.17481856,0.0001558,2]
[408414792,1773583840590,-781.06101906,0.0001558,2]
[408414793,1773583840602,-497.12974831,0.0001558,2]
[408414794,1773583840614,-59714.8788332,0.0001558,2]
[408414803,1773583843043,-6173.28990295,0.0001558,2]
[408414804,1773583843054,-2343.68669856,0.0001558,2]
[408414805,1773583843066,-957.02290192,0.0001558,2]
[408414806,1773583843076,-716.15733248,0.0001558,2]
[408414807,1773583843089,-2509.07303865,0.0001558,2]
[408414808,1773583843101,-18314.47348718,0.0001558,2]
[408414809,1773583843113,-3347.45891752,0.0001558,2]
[408414810,1773583843124,-714.64543156,0.0001558,2]
[408414811,1773583843135,-1030.1308482,0.0001558,2]
[408414812,1773583843146,-1521.12596407,0.0001558,2]
[408414813,1773583843212,-33185.50452546,0.0001558,2]
[408414814,1773583843223,-743.33980056,0.0001558,2]
[408414815,1773583843234,-4131.7238808,0.0001558,2]
[408414816,1773583843245,-554.30397539,0.0001558,2]
[408414819,1773583843354,-43.19632875,0.0001558,2]
[408414820,1773583843396,-6113.04472289,0.0001558,2]
[408414835,1773583845938,-421.59350153,0.0001558,2]
[408414836,1773583846298,-6471.28269683,0.0001558,2]
[408414843,1773584068246,1166.77,8.156e-05,2]
[408414844,1773584068446,1166.77,8.585e-05,2]
[408414845,1773584068727,1166.77,9.015e-05,2]
[408414846,1773584068929,1166.77,9.444e-05,2]
[408414847,1773584069366,1166.77,9.873e-05,2]
[408414848,1773584069407,1166.77,0.00010302,2]
[408414849,1773584069559,1166.77,0.00010732,2]
[408414850,1773584069773,1166.77,0.00011161,2]
[408414851,1773584069973,665.85,0.0001159,2]
[408414852,1773584069999,500.92,0.0001159,2]
[408414853,1773584105766,261.0,0.00011698,2]
[408414854,1773584106833,161.0,0.00011698,2]
[408414855,1773584167180,248.0,0.00011698,2]
[408414856,1773584226795,235.0,0.00011698,2]
[408414859,1773584287746,224.0,0.00011698,2]
[408414861,1773584347604,212.0,0.00011698,2]
[408414864,1773584407313,161.0,0.00011698,2]
[408414865,1773584412010,202.0,0.00011698,2]
[408414867,1773584467501,192.0,0.00011698,2]
[408414871,1773584525186,182.0,0.00011698,2]
[408414875,1773584588002,173.0,0.00011698,2]
[408414877,1773584632106,176.66,0.00010904,2]
[408414878,1773584651162,164.0,0.00011698,2]
[408414880,1773584693424,201.51909867,1.29e-06,30]
[408414882,1773584705722,156.0,0.00011698,2]
[408414883,1773584709367,161.0,0.00011698,2]
[408414885,1773584764367,156.0,0.00011698,2]
[408414887,1773584826959,156.0,0.00011698,2]
[408414890,1773584886847,156.0,0.00011698,2]
[408414893,1773584946590,156.0,0.00011698,2]
[408414894,1773584957138,-1166.77,0.0001202,2]
[408414895,1773584957158,-1166.77,0.00012449,2]
[408414896,1773584957178,-417.36474758,0.00012778,2]
[408414897,1773584957197,-1166.77,0.00012878,2]
[408414898,1773584957218,-250.0,0.00013221,2]
[408414899,1773584957237,-250.0,0.00013221,2]
[408414900,1773584957256,-250.0,0.00013221,2]
[408414901,1773584957276,-880.86749642,0.00013307,2]
[408414903,1773585007710,156.0,0.00011698,2]
[408414904,1773585007830,161.0,0.00011698,2]
[408414909,1773585032077,-285.90250358,0.00013307,2]
[408414910,1773585032087,-832.91539973,0.000134,2]
[408414911,1773585032095,-109.89177714,0.00013604,2]
[408414912,1773585032106,-1742.52822286,0.00013604,2]
[408414913,1773585032117,-57.47177714,0.0001361,2]
[408414914,1773585032148,-359.89297043,0.0001361,2]
[408414915,1773585032157,-176.66,0.0001363,2]
[408414916,1773585032166,-3426.9,0.0001363,2]
[408414917,1773585032175,-156.0,0.00013691,3]
[408414918,1773585032183,-1200.0,0.00013736,2]
[408414919,1773585032192,-1166.77,0.00013737,2]
[408414920,1773585032202,-300.0,0.00013959,2]
[408414921,1773585032211,-1699.0,0.0001396,2]
[408414922,1773585032220,-219.0,0.00013988,2]
[408414923,1773585032229,-164.72,0.00014,2]
[408414924,1773585032238,-1166.77,0.00014166,2]
[408414925,1773585032247,-353.0,0.00014209,2]
[408414926,1773585032256,-835.0,0.00014312,2]
[408414927,1773585032265,-500.0,0.00014346,3]
[408414928,1773585032274,-594.52748356,0.000144,2]
[408414929,1773585032283,-607.97224159,0.000144,2]
[408414930,1773585032292,-1325.04425369,0.000144,2]
[408414931,1773585032301,-417.36474757,0.00014441,2]
[408414932,1773585032310,-484.31397246,0.00014451,2]
[408414933,1773585032320,-150.0,0.00014472,2]
[408414935,1773585032331,-259.79722554,0.00014473,2]
[408414936,1773585032340,-596.82463776,0.00014473,2]
[408414937,1773585032349,-7201.78221481,0.00014473,2]
[408414938,1773585032359,-2891.87548576,0.00014473,2]
[408414939,1773585032368,-30542.63772444,0.0001454,2]
[408414940,1773585032380,-13615.23585333,0.0001454,2]
[408414941,1773585032389,-176.33180245,0.00014541,2]
[408414942,1773585032398,-177.869,0.0001455,2]
[408414943,1773585032407,-500.0,0.0001455,2]
[408414944,1773585032416,-500.0,0.0001455,2]
[408414945,1773585032425,-500.0,0.0001455,2]
[408414946,1773585032434,-500.0,0.0001455,2]
[408414947,1773585032443,-500.0,0.0001455,2]
[408414948,1773585032453,-412.21373922,0.0001455,2]
[408414949,1773585032462,-500.0,0.0001455,2]
[408414950,1773585032471,-500.0,0.0001455,2]
[408414951,1773585032480,-500.0,0.0001455,2]
[408414952,1773585032489,-500.0,0.0001455,2]
[408414953,1773585032499,-500.0,0.0001455,2]
[408414954,1773585032508,-500.0,0.0001455,2]
[408414955,1773585032517,-500.0,0.0001455,2]
[408414956,1773585032526,-500.0,0.0001455,2]
[408414957,1773585032536,-500.0,0.0001455,2]
[408414958,1773585032545,-500.0,0.0001455,2]
[408414959,1773585032554,-500.0,0.0001455,2]
[408414960,1773585032563,-500.0,0.0001455,2]
[408414961,1773585032572,-500.0,0.0001455,2]
[408414962,1773585032582,-500.0,0.0001455,2]
[408414963,1773585032591,-210.42133196,0.0001455,2]
[408414964,1773585032599,-500.0,0.0001455,2]
[408414965,1773585032609,-454.97054362,0.0001455,2]
[408414966,1773585032618,-500.0,0.0001455,2]
[408414967,1773585032627,-500.0,0.0001455,2]
[408414968,1773585032636,-485.32992184,0.0001455,2]
[408414969,1773585032645,-500.0,0.0001455,2]
[408414970,1773585032654,-500.0,0.0001455,2]
[408414971,1773585032663,-500.0,0.0001455,2]
[408414972,1773585032672,-500.0,0.0001455,2]
[408414973,1773585032681,-503.66754256,0.0001455,2]
[408414974,1773585032690,-500.0,0.0001455,2]
[408414975,1773585032699,-500.0,0.0001455,2]
[408414976,1773585032709,-153.2265422,0.0001455,2]
[408414977,1773585032719,-23.74861033,0.0001455,2]
[408414978,1773585032730,-476.25138967,0.0001455,2]
[408414979,1773585032740,-500.0,0.0001455,2]
[408414980,1773585032748,-500.0,0.0001455,2]
[408414981,1773585032757,-500.0,0.0001455,2]
[408414982,1773585032766,-586.54938757,0.0001455,2]
[408414983,1773585032775,-500.0,0.0001455,2]
[408414984,1773585032784,-195.68651042,0.0001455,2]
[408414985,1773585032793,-302.61691,0.0001455,2]
[408414986,1773585032802,-500.0,0.0001455,2]
[408414987,1773585032811,-500.0,0.0001455,2]
[408414988,1773585032821,-500.0,0.0001455,2]
[408414989,1773585032829,-500.0,0.0001455,2]
[408414990,1773585032838,-500.0,0.0001455,2]
[408414991,1773585032847,-500.0,0.0001455,2]
[408414992,1773585032856,-500.0,0.0001455,2]
[408414993,1773585032866,-500.0,0.0001455,2]
[408414994,1773585032875,-500.0,0.0001455,2]
[408414995,1773585032883,-500.0,0.0001455,2]
[408414996,1773585032892,-500.0,0.0001455,2]
[408414997,1773585032901,-2467.547,0.0001455,2]
[408414998,1773585032910,-500.0,0.0001455,2]
[408414999,1773585032919,-500.0,0.0001455,2]
[408415000,1773585032928,-500.0,0.0001455,2]
[408415001,1773585032939,-500.0,0.0001455,2]
[408415002,1773585032950,-500.0,0.0001455,2]
[408415003,1773585032959,-267.37,0.0001455,2]
[408415004,1773585032968,-500.0,0.0001455,2]
[408415005,1773585032977,-500.0,0.0001455,2]
[408415006,1773585032996,-500.0,0.0001455,2]
[408415007,1773585033005,-500.0,0.0001455,2]
[408415008,1773585033014,-500.0,0.0001455,2]
[408415009,1773585033023,-500.0,0.0001455,2]
[408415010,1773585033033,-500.0,0.0001455,2]
[408415011,1773585033042,-500.0,0.0001455,2]
[408415012,1773585033051,-500.0,0.0001455,2]
[408415013,1773585033060,-500.0,0.0001455,2]
[408415014,1773585033070,-500.0,0.0001455,2]
[408415015,1773585033081,-500.0,0.0001455,2]
[408415016,1773585033091,-500.0,0.0001455,2]
[408415017,1773585033100,-500.0,0.0001455,2]
[408415018,1773585033113,-500.0,0.0001455,2]
[408415019,1773585033122,-500.0,0.0001455,2]
[408415020,1773585033132,-106946.62745131,0.00014551,2]
[408415021,1773585033144,-439096.48349287,0.00014551,2]
[408415022,1773585033155,-5563.98821051,0.00014551,2]
[408415023,1773585038107,-4810.94195086,0.00014551,2]
[408415024,1773585038118,-11700.40405899,0.00014551,2]
[408415025,1773585038129,-1945.68866402,0.00014551,2]
[408415026,1773585038141,-587.41483833,0.00014551,2]
[408415027,1773585038151,-796.55986639,0.00014551,2]
[408415028,1773585038163,-4264.19002541,0.00014551,2]
[408415029,1773585038174,-22711.83799274,0.00014551,2]
[408415030,1773585038226,-4934.206548,0.00014551,2]
[408415031,1773585038237,-8771.8,0.00014551,2]
[408415032,1773585038292,-639.31888652,0.00014551,2]
[408415063,1773585040449,-985.18381087,0.00014551,2]
[408415064,1773585040460,-2315.09651318,0.00014551,2]
[408415065,1773585040472,-35893.8876836,0.00014551,2]
[408415066,1773585040488,-15512.28370302,0.00014551,2]
[408415067,1773585040498,-18356.25,0.00014551,2]
[408415068,1773585040565,-705.6662185,0.00014551,2]
[408415069,1773585040736,-5959.26942388,0.00014551,2]
[408415070,1773585040750,-475.80353924,0.00014551,2]
[408415071,1773585040761,-64343.74986839,0.00014551,2]
[408415084,1773585043438,-500.0,0.00014551,2]
[408415085,1773585043450,-341.04,0.00014551,2]
[408415086,1773585043551,-1468.0,0.00014551,2]
[408415091,1773585046313,-2356.53369478,0.00014551,2]
[408415092,1773585046329,-29649.08339416,0.00014551,2]
[408415094,1773585047127,-93509.77829589,0.00014551,2]
[408415095,1773585047139,-476825.36556854,0.00014551,2]
[408415096,1773585047149,-502.48786936,0.00014573,2]
[408415097,1773585047160,-574.15668349,0.00014573,2]
[408415098,1773585047170,-500.0,0.00014573,2]
[408415099,1773585047180,-500.0,0.00014573,2]
[408415100,1773585047191,-502.08297344,0.00014573,2]
[408415101,1773585047200,-500.0,0.00014573,2]
[408415102,1773585047211,-500.0,0.00014573,2]
[408415103,1773585047220,-503.80168812,0.00014573,2]
[408415104,1773585047231,-500.50132648,0.00014573,2]
[408415105,1773585047240,-500.0,0.00014573,2]
[408415106,1773585047251,-1166.77,0.00014595,2]
[408415107,1773585047260,-203.89137362,0.00014638,2]
[408415108,1773585047270,-250.0,0.00014638,2]
[408415109,1773585047283,-300.0,0.00014638,2]
[408415110,1773585047292,-300.0,0.00014638,2]
[408415111,1773585047302,-300.0,0.00014638,2]
[408415112,1773585047312,-300.0,0.00014638,2]
[408415113,1773585047322,-434.17103595,0.00014638,2]
[408415114,1773585047332,-300.1591244,0.00014638,2]
[408415115,1773585047341,-600.0,0.00014638,2]
[408415116,1773585047351,-600.0,0.00014638,2]
[408415117,1773585047360,-600.0,0.00014638,2]
[408415118,1773585047369,-600.0,0.00014638,2]
[408415119,1773585047379,-600.0,0.00014638,2]
[408415120,1773585047389,-500.0,0.00014638,2]
[408415121,1773585047400,-500.0,0.00014638,2]
[408415122,1773585047409,-500.0,0.00014638,2]
[408415123,1773585047419,-342.34757849,0.00014638,2]
[408415124,1773585047428,-160.93,0.0001465,2]
[408415125,1773585047439,-30588.89713704,0.00014651,2]
[408415126,1773585047451,-5763.66286296,0.00014651,2]
[408415127,1773585047460,-514.36038322,0.00014673,2]
[408415128,1773585047470,-503.41003758,0.00014673,2]
[408415129,1773585047480,-500.0,0.00014673,2]
[408415130,1773585047490,-500.0,0.00014673,2]
[408415131,1773585047500,-500.0,0.00014673,2]
[408415132,1773585047510,-501.05120962,0.00014673,2]
[408415133,1773585047520,-500.73626108,0.00014673,2]
[408415134,1773585047530,-501.74650809,0.00014673,2]
[408415135,1773585047539,-500.77801986,0.00014673,2]
[408415136,1773585047549,-168.25297074,0.00014673,2]
[408415137,1773585047559,-500.0,0.00014673,2]
[408415139,1773585047571,-1200.0,0.000147,5]
[408415140,1773585047582,-500.0,0.0001474,2]
[408415142,1773585047591,-1500.0,0.00014797,2]
[408415143,1773585047601,-2283.69,0.00014797,2]
[408415144,1773585047612,-2500.0,0.000148,5]
[408415145,1773585047622,-267.37,0.00014824,2]
[408415146,1773585047632,-180.81732448,0.00014847,2]
[408415147,1773585047642,-3700.0,0.000149,5]
[408415148,1773585047652,-250.0,0.00015,2]
[408415149,1773585047662,-317.12442237,0.00015024,2]
[408415176,1773585646662,5533.0,0.00011,5]
[408415187,1773586002127,-166.66,0.00013266,2]
[408415188,1773586002147,-16.37984132,0.00013545,2]
[408415191,1773586050162,-150.28015868,0.00013545,2]
[408415192,1773586050183,-561.98441541,0.00013731,2]
[408415200,1773586192813,3917.15,0.00011507,2]
[408415205,1773586232207,-676.92004919,0.0001371,2]
[408415207,1773586232219,-523.07995081,0.0001371,2]
[408415209,1773586232229,-620.07688622,0.0001371,2]
[408415210,1773586232238,-2435.82838723,0.00013711,2]
[408415211,1773586232273,-740.01793856,0.00013711,2]
[408415212,1773586232284,-1226.14367421,0.00013711,2]
[408415213,1773586232293,-184.51,0.00013711,2]
[408415214,1773586232303,-200.0,0.00013711,2]
[408415215,1773586232312,-30.42913007,0.00013759,2]
[408415216,1773586232339,-269.57086993,0.00013759,2]
[408415217,1773586232349,-483.23742566,0.0001376,2]
[408415218,1773586232360,-343.32323318,0.0001376,2]
[408415219,1773586232399,-454.55387908,0.0001376,2]
[408415220,1773586232412,-481.04546208,0.0001376,2]
[408415221,1773586232422,-166.66,0.00013824,2]
[408415222,1773586232432,-3240.0,0.00013919,2]
[408415223,1773586232441,-166.66,0.00014103,2]
[408415224,1773586232451,-1762.16,0.00014104,2]
[408415225,1773586232460,-165.42,0.00014122,2]
[408415227,1773586232469,-36582.4987,0.00014155,2]
[408415229,1773586232479,-8179.97,0.00014167,2]
[408415231,1773586232488,-2868.27,0.0001421,2]
[408415233,1773586232497,-167.91,0.00014231,2]
[408415235,1773586232507,-167.91,0.00014231,2]
[408415237,1773586232516,-16335.33,0.00014254,2]
[408415239,1773586232526,-12353.1695777,0.00014283,2]
[408415258,1773586232732,-32099.29,0.00014322,2]
[408415259,1773586232750,-1772.61,0.00014356,2]
[408415260,1773586232760,-500.0,0.00014373,2]
[408415261,1773586232770,-500.0,0.00014373,2]
[408415262,1773586232782,-500.0,0.00014373,2]
[408415263,1773586232792,-48473.54837555,0.00014378,2]
[408415264,1773586232802,-166.66,0.00014383,2]
[408415265,1773586232812,-2000.0,0.00014408,2]
[408415266,1773586232821,-259.77,0.00014417,2]
[408415267,1773586232831,-500.0,0.00014438,2]
[408415268,1773586232840,-1762.16,0.00014448,2]
[408415269,1773586232850,-500.0,0.00014549,2]
[408415270,1773586232860,-500.0,0.00014549,2]
[408415271,1773586232869,-500.0,0.00014549,2]
[408415272,1773586232878,-500.0,0.00014549,2]
[408415273,1773586232887,-500.0,0.00014549,2]
[408415274,1773586232897,-283.3389265,0.00014549,2]
[408415275,1773586232906,-500.0,0.00014549,2]
[408415276,1773586232917,-500.0,0.00014549,2]
[408415277,1773586232926,-500.0,0.0001455,2]
[408415278,1773586232935,-500.0,0.0001455,2]
[408415279,1773586232944,-500.0,0.0001455,2]
[408415280,1773586232953,-500.0,0.0001455,2]
[408415281,1773586232963,-500.0,0.0001455,2]
[408415282,1773586232972,-500.0,0.0001455,2]
[408415283,1773586232981,-500.0,0.0001455,2]
[408415284,1773586232991,-500.0,0.0001455,2]
[408415285,1773586233000,-500.0,0.0001455,2]
[408415286,1773586233009,-500.0,0.0001455,2]
[408415287,1773586233018,-500.0,0.0001455,2]
[408415288,1773586233027,-607.88103677,0.0001455,2]
[408415289,1773586233036,-267.38,0.0001455,2]
[408415290,1773586233045,-500.0,0.0001455,2]
[408415291,1773586233054,-500.0,0.0001455,2]
[408415292,1773586233063,-500.0,0.0001455,2]
[408415293,1773586233072,-500.0,0.0001455,2]
[408415294,1773586233081,-500.0,0.0001455,2]
[408415295,1773586233090,-500.0,0.0001455,2]
[408415296,1773586233099,-500.0,0.0001455,2]
[408415297,1773586233107,-500.0,0.0001455,2]
[408415298,1773586233117,-500.0,0.0001455,2]
[408415299,1773586233126,-500.0,0.0001455,2]
[408415300,1773586233134,-500.0,0.0001455,2]
[408415301,1773586233144,-500.0,0.0001455,2]
[408415302,1773586233153,-500.0,0.0001455,2]
[408415303,1773586233163,-500.0,0.0001455,2]
[408415304,1773586233172,-500.0,0.0001455,2]
[408415305,1773586233181,-607.63172262,0.0001455,2]
[408415306,1773586233191,-500.0,0.0001455,2]
[408415307,1773586233200,-500.0,0.0001455,2]
[408415308,1773586233209,-500.0,0.0001455,2]
[408415309,1773586233218,-500.0,0.0001455,2]
[408415310,1773586233227,-500.0,0.0001455,2]
[408415311,1773586233237,-492.2406426,0.0001455,2]
[408415312,1773586233246,-500.0,0.0001455,2]
[408415313,1773586233255,-500.0,0.0001455,2]
[408415314,1773586233264,-500.0,0.0001455,2]
[408415315,1773586233273,-500.0,0.0001455,2]
[408415316,1773586233283,-500.0,0.0001455,2]
[408415317,1773586233291,-502.6227765,0.0001455,2]
[408415318,1773586233301,-500.0,0.0001463,2]
[408415319,1773586233311,-166.66,0.00014662,2]
[408415320,1773586233321,-29497.8533426,0.00014668,2]
[408415321,1773586233329,-6581.8607404,0.00014679,2]
[408415322,1773586233339,-430.28779846,0.00014701,2]
[408415323,1773586233349,-1762.16,0.00014792,2]
[408415324,1773586233357,-500.0,0.00014921,2]
[408415325,1773586233366,-1000.0,0.00014921,2]
[408415326,1773586233375,-2868.27,0.00014921,2]
[408415327,1773586233384,-150.0,0.00014924,2]
[408415328,1773586233393,-171.70924483,0.00014924,2]
[408415329,1773586233403,-4490.71495108,0.00014938,2]
[408415330,1773586233413,-2500.0,0.0001496,2]
[408415331,1773586233422,-500.0,0.00014986,2]
[408415332,1773586233431,-165.42,0.00015005,2]
[408415333,1773586233440,-1318.31522047,0.00015024,2]
[408415334,1773586233449,-200.0,0.00015024,2]
[408415335,1773586233458,-500.0,0.00015024,2]
[408415336,1773586233468,-170.0,0.00015024,3]
[408415337,1773586233477,-157.0,0.00015024,3]
[408415338,1773586233486,-849.64557763,0.00015024,2]
[408415339,1773586233495,-420.0,0.00015077,2]
[408415340,1773586233505,-7725.17211562,0.0001508,2]
[408415341,1773586233515,-1680.0,0.00015081,2]
[408415342,1773586233525,-600.0,0.00015081,2]
[408415343,1773586233533,-278.91391982,0.00015103,2]
[408415344,1773586233543,-1762.16,0.00015136,2]
[408415345,1773586233554,-501.3214937,0.00015173,2]
[408415346,1773586233564,-500.0,0.00015173,2]
[408415347,1773586233573,-500.0,0.00015173,2]
[408415348,1773586233582,-6598.07315127,0.00015173,2]
[408415349,1773586233591,-200.0,0.00015174,2]
[408415350,1773586233600,-151.0,0.00015177,2]
[408415351,1773586233611,-500.0,0.00015179,2]
[408415352,1773586233621,-500.0,0.00015179,2]
[408415353,1773586233630,-500.0,0.00015179,2]
[408415354,1773586233639,-500.0,0.00015179,2]
[408415355,1773586233648,-500.0,0.00015179,2]
[408415356,1773586233658,-568.64936411,0.00015179,2]
[408415357,1773586233667,-500.0,0.00015179,2]
[408415358,1773586233679,-500.0,0.00015179,2]
[408415359,1773586233689,-500.0,0.00015179,2]
[408415360,1773586233699,-500.0,0.00015179,2]
[408415361,1773586233708,-500.0,0.00015179,2]
[408415362,1773586233718,-6546.3445,0.0001518,2]
[408415363,1773586233726,-3152.42938247,0.0001518,2]
[408415364,1773586233739,-29795.37281753,0.0001518,2]
[408415365,1773586233751,-1000.0,0.0001518,2]
[408415366,1773586233760,-39034.31740094,0.00015208,2]
[408415367,1773586233771,-43470.71863446,0.00015208,2]
[408415368,1773586233781,-500.0,0.00015233,2]
[408415369,1773586233791,-500.0,0.00015273,2]
[408415370,1773586233800,-500.0,0.00015273,2]
[408415371,1773586233810,-500.0,0.00015273,2]
[408415372,1773586233820,-500.4316981,0.00015273,2]
[408415373,1773586233829,-500.0,0.00015273,2]
[408415374,1773586233838,-151.0,0.00015277,2]
[408415375,1773586233847,-567.23604194,0.00015279,2]
[408415376,1773586233856,-3348.08269352,0.00015286,2]
[408415377,1773586233865,-350.0,0.00015308,2]
[408415378,1773586233874,-500.0,0.00015312,2]
[408415379,1773586233883,-200.0,0.00015326,2]
[408415380,1773586233893,-631.6996737,0.000154,2]
[408415381,1773586233903,-1166.77,0.00015454,2]
[408415382,1773586233913,-366.97652457,0.00015475,2]
[408415383,1773586233923,-200.0,0.00015479,2]
[408415384,1773586233932,-350.0,0.00015532,2]
[408415385,1773586233941,-1000.0,0.00015581,2]
[408415386,1773586233950,-1000.0,0.00015581,2]